bitfinex/quotes_BTCUSD_20250123
["timestamp","ask_amount","ask_price","bid_price","bid_amount"]
[1737651875947,0.37794408,104500.0,104490.0,0.00129183]
[1737651876155,0.38463865,104500.0,104490.0,0.00129183]
[1737651876397,0.39263865,104500.0,104490.0,0.00229183]
[1737651876622,0.38463865,104500.0,104490.0,0.00129183]
[1737651876854,0.36594408,104500.0,104490.0,0.00229183]
[1737651878048,6.85894408,104500.0,104490.0,0.00129183]
[1737651878252,6.60534729,104500.0,104490.0,0.09699383]
[1737651879002,6.71004029,104500.0,104490.0,0.09799383]
[1737651879220,6.529,104500.0,104490.0,0.09699383]
[1737651879451,6.514,104500.0,104490.0,0.09699383]
[1737651879699,6.505,104500.0,104490.0,0.09599383]
[1737651879934,6.85594408,104500.0,104490.0,0.00029183]
[1737651880398,6.87594408,104500.0,104490.0,0.00029183]
[1737651880971,6.85594408,104500.0,104490.0,0.00029183]
[1737651881264,6.85094408,104500.0,104490.0,0.00029183]
[1737651881656,6.85094408,104500.0,104490.0,0.10099383]
[1737651881657,6.59734729,104500.0,104490.0,0.10099383]
[1737651881861,6.69304029,104500.0,104490.0,0.09599383]
[1737651882063,6.60234729,104500.0,104490.0,0.09599383]
[1737651882279,6.505,104500.0,104490.0,0.16301671]
[1737651882496,6.62234729,104500.0,104490.0,0.09599383]
[1737651882756,6.507,104500.0,104490.0,0.09599383]
[1737651882965,6.5,104500.0,104490.0,0.09599383]
[1737651883400,6.5,104500.0,104490.0,0.24434112]
[1737651883603,6.5,104500.0,104490.0,0.34168841]
[1737651883855,6.41473437,104500.0,104490.0,0.44168841]
[1737651884074,1.99288266,104500.0,104490.0,0.38324112]
[1737651884277,4e-05,104560.0,104530.0,0.2]
[1737651884485,0.33506078,104590.0,104570.0,0.191249]
[1737651884692,0.038266,104600.0,104570.0,0.191247]
[1737651884897,0.54025779,104620.0,104590.0,0.191209]
[1737651885105,0.09734729,104620.0,104610.0,0.095593]
[1737651885324,0.09591604,104630.0,104620.0,0.095584]
[1737651885325,0.03859104,104630.0,104620.0,0.095584]
[1737651885533,0.00033904,104630.0,104620.0,0.095584]
[1737651885940,0.00083781,104630.0,104620.0,0.095584]
[1737651887935,0.25608889,104630.0,104610.0,0.19117]
[1737651888142,0.54201308,104620.0,104600.0,0.286783]
[1737651888354,0.00283781,104630.0,104620.0,0.095584]
[1737651888966,0.00083781,104630.0,104620.0,0.095584]
[1737651889090,0.00283781,104630.0,104620.0,0.095584]
[1737651889487,0.25608889,104630.0,104620.0,0.095584]
[1737651889692,0.35166689,104630.0,104610.0,0.382344]
[1737651889919,0.1937591,104630.0,104610.0,0.382344]
[1737651890207,0.1587416,104630.0,104620.0,0.095584]
[1737651890394,0.00083781,104630.0,104620.0,0.095584]
[1737651890961,0.00083781,104630.0,104620.0,0.099584]
[1737651891371,0.00083781,104630.0,104620.0,0.149584]
[1737651891547,0.00083781,104630.0,104620.0,0.24693129]
[1737651892016,0.00083781,104630.0,104620.0,0.39693129]
[1737651892150,0.00083781,104630.0,104620.0,0.34693129]
[1737651892516,0.00083781,104630.0,104620.0,0.34493129]
[1737651892708,0.00083781,104630.0,104620.0,0.34593129]
[1737651892889,0.00083781,104630.0,104620.0,0.098584]
[1737651893951,0.00083781,104630.0,104620.0,0.19593129]
[1737651894179,0.00083781,104630.0,104620.0,0.20093129]
[1737651894372,0.00083781,104630.0,104620.0,0.095584]
[1737651894819,0.00083781,104630.0,104620.0,0.103584]
[1737651895000,0.00083781,104630.0,104620.0,0.098584]
[1737651895209,0.00083781,104630.0,104620.0,0.36593129]
[1737651895405,0.00029883,104640.0,104630.0,0.315574]
[1737651895618,0.0004484,104640.0,104630.0,0.39292129]
[1737651895839,0.0004484,104640.0,104630.0,0.41292129]
[1737651896249,0.0004484,104640.0,104630.0,0.36292129]
[1737651896469,0.0004484,104640.0,104630.0,0.41292129]
[1737651896692,4e-07,104640.0,104630.0,0.41292129]
[1737651897633,4e-07,104640.0,104630.0,0.34692129]
[1737651897887,4e-07,104640.0,104630.0,0.41292129]
[1737651898091,4e-05,104660.0,104630.0,0.41292129]
[1737651898238,0.0089128,104700.0,104680.0,0.191054]
[1737651898438,0.00906265,104700.0,104690.0,0.09552]
[1737651899141,0.10457265,104700.0,104680.0,0.573138]
[1737651899345,0.01706265,104700.0,104690.0,0.09552]
[1737651899548,0.01706265,104700.0,104680.0,0.38309]
[1737651899750,0.40096094,104700.0,104680.0,0.478618]
[1737651899962,0.58399194,104700.0,104680.0,0.477618]
[1737651900180,0.10640994,104700.0,104690.0,0.09552]
[1737651900387,0.10457265,104700.0,104690.0,0.09552]
[1737651900564,0.29559965,104700.0,104690.0,0.09552]
[1737651900765,0.095538,104670.0,104660.0,0.09554]
[1737651900980,0.095538,104670.0,104650.0,0.477751]
[1737651901175,0.095538,104670.0,104620.0,0.05]
[1737651901176,0.09503022,104660.0,104640.0,0.477796]
[1737651901380,0.09734729,104660.0,104650.0,0.095556]
[1737651901557,0.0821,104670.0,104660.0,0.095547]
[1737651901778,0.191095,104660.0,104630.0,0.38228]
[1737651902002,0.38402129,104650.0,104640.0,0.095565]
[1737651902204,0.47958329,104650.0,104630.0,0.286704]
[1737651902377,0.28846029,104650.0,104640.0,0.004]
[1737651902588,0.38402329,104650.0,104640.0,0.004]
[1737651902902,0.54192708,104650.0,104640.0,0.004]
[1737651903094,0.74042708,104650.0,104640.0,0.004]
[1737651903427,0.69042708,104650.0,104640.0,0.004]
[1737651903620,0.095574,104630.0,104610.0,0.477937]
[1737651903830,0.095584,104620.0,104610.0,0.00049877]
[1737651904073,0.35083508,104620.0,104610.0,0.00049877]
[1737651904279,0.27423129,104620.0,104610.0,0.00049877]
[1737651904899,0.0813,104620.0,104610.0,0.09609177]
[1737651905110,0.0806,104640.0,104630.0,0.191135]
[1737651905328,0.176165,104640.0,104630.0,0.095574]
[1737651905546,0.0806,104640.0,104630.0,0.095574]
[1737651905751,0.17794729,104640.0,104620.0,0.286732]
[1737651905951,0.65579229,104640.0,104620.0,0.28673]
[1737651906153,0.095574,104630.0,104620.0,0.28673]
[1737651906353,0.56022029,104640.0,104620.0,0.28673]
[1737651906565,0.65579129,104640.0,104620.0,0.477897]
[1737651906768,0.17794729,104640.0,104630.0,0.095574]
[1737651907182,0.0806,104640.0,104630.0,0.095574]
[1737651907620,0.176165,104640.0,104630.0,0.095574]
[1737651907844,0.56023129,104640.0,104620.0,0.001]
[1737651908025,0.37082508,104630.0,104620.0,0.003]
[1737651908226,0.218384,104620.0,104610.0,0.00049877]
[1737651908432,0.095602,104600.0,104590.0,0.0001424]
[1737651908631,0.19294929,104600.0,104590.0,0.0001424]
[1737651908925,0.1228,104620.0,104610.0,0.095593]
[1737651908926,0.12329929,104620.0,104610.0,0.095593]
[1737651909155,0.21888329,104620.0,104610.0,0.095593]
[1737651909382,0.095596,104610.0,104590.0,0.3825624]
[1737651909563,0.50740358,104620.0,104600.0,0.28616244]
[1737651909743,0.15790379,104610.0,104600.0,0.28616244]
[1737651910145,0.25349679,104610.0,104600.0,0.09496244]
[1737651910579,0.44644808,104610.0,104590.0,0.0001424]
[1737651910733,0.44644808,104610.0,104600.0,0.095602]
[1737651910734,0.35084408,104610.0,104600.0,0.095602]
[1737651910934,0.15790379,104610.0,104600.0,0.096602]
[1737651911233,0.56896808,104620.0,104610.0,0.001]
[1737651911466,0.66531537,104620.0,104610.0,0.001]
[1737651911652,0.002,104610.0,104600.0,0.286787]
[1737651911845,0.25725108,104610.0,104600.0,0.286787]
[1737651912063,0.25525108,104610.0,104600.0,0.287787]
[1737651912394,0.35084408,104610.0,104600.0,0.286787]
[1737651912594,0.25525108,104610.0,104600.0,0.286787]
[1737651913024,0.35084408,104610.0,104600.0,0.286787]
[1737651913261,0.37679308,104620.0,104610.0,0.095593]
[1737651913467,0.095593,104610.0,104600.0,0.10748876]
[1737651913666,0.35084408,104610.0,104600.0,0.01088876]
[1737651914122,0.35184408,104610.0,104600.0,0.01088876]
[1737651914325,0.35184408,104610.0,104600.0,0.01188876]
[1737651914593,0.35184408,104610.0,104600.0,0.001]
[1737651914754,0.15890379,104610.0,104590.0,0.3825624]
[1737651915010,0.25350579,104600.0,104590.0,0.0001424]
[1737651915211,0.25525108,104600.0,104590.0,0.0957534]
[1737651915453,0.001,104610.0,104600.0,0.095602]
[1737651915667,0.001,104610.0,104600.0,0.41294929]
[1737651916471,0.001,104610.0,104600.0,0.44244434]
[1737651916676,0.001,104610.0,104600.0,0.37244434]
[1737651916898,0.001,104610.0,104600.0,0.19294929]
[1737651917096,0.00049929,104620.0,104610.0,0.095593]
[1737651917844,0.15840308,104620.0,104610.0,0.095593]
[1737651918044,0.00049929,104620.0,104610.0,0.095593]
[1737651918271,0.00049929,104620.0,104610.0,0.097593]
[1737651918683,0.00049929,104620.0,104610.0,0.19294029]
[1737651918892,0.00049929,104620.0,104610.0,0.42654224]
[1737651919087,0.15790379,104650.0,104640.0,0.095559]
[1737651919291,0.36144429,104660.0,104650.0,0.095556]
[1737651919292,0.07479929,104660.0,104650.0,0.095556]
[1737651919731,0.15790379,104680.0,104670.0,0.095538]
[1737651919972,0.15790379,104680.0,104660.0,0.477702]
[1737651919973,0.35078008,104680.0,104660.0,0.477702]
[1737651920241,0.35079208,104670.0,104650.0,0.382202]
[1737651920464,0.15790379,104660.0,104640.0,0.28668]
[1737651920680,0.15790379,104650.0,104640.0,0.286688]
[1737651920840,0.15790379,104670.0,104660.0,0.095544]
[1737651921217,0.001,104680.0,104670.0,0.095538]
[1737651921565,0.001,104680.0,104670.0,0.19288529]
[1737651921566,0.00014979,104680.0,104670.0,0.19288529]
[1737651921698,0.00014979,104680.0,104670.0,0.095538]
[1737651921920,0.00014979,104680.0,104670.0,0.12512791]
[1737651922143,0.00014979,104680.0,104670.0,0.2224752]
[1737651922381,0.00114979,104680.0,104670.0,0.2224752]
[1737651922598,0.00114979,104680.0,104670.0,0.2224352]
[1737651922801,0.00114979,104680.0,104670.0,0.27255953]
[1737651923193,0.24701542,104700.0,104690.0,0.09552]
[1737651923804,0.08911163,104700.0,104690.0,0.09552]
[1737651924032,0.24701542,104700.0,104690.0,0.09552]
[1737651924315,0.00921163,104700.0,104690.0,0.19286729]
[1737651924570,0.00921163,104700.0,104690.0,0.39238912]
[1737651924832,0.00921163,104700.0,104690.0,0.38328509]
[1737651925088,0.00921163,104700.0,104690.0,0.39097543]
[1737651925341,0.00921163,104700.0,104690.0,0.14362814]
[1737651925623,0.00921163,104700.0,104690.0,0.2114536]
[1737651925812,0.00921163,104700.0,104690.0,0.44495864]
[1737651926015,0.00921163,104700.0,104690.0,0.39495864]
[1737651926216,0.00921163,104700.0,104690.0,0.46235336]
[1737651926431,0.00921163,104700.0,104690.0,0.26235336]
[1737651926628,0.00921163,104700.0,104690.0,0.25232455]
[1737651926843,0.00925163,104700.0,104690.0,0.25232455]
[1737651927197,0.00925163,104700.0,104690.0,0.27403386]
[1737651927409,0.00925163,104700.0,104690.0,0.22403386]
[1737651927592,0.00925163,104700.0,104690.0,0.10921034]
[1737651927794,0.00925163,104700.0,104690.0,0.10152]
[1737651928449,0.00925163,104700.0,104690.0,0.19286729]
[1737651928649,0.00925163,104700.0,104690.0,0.09552]
[1737651928893,0.00925163,104700.0,104690.0,0.10152]
[1737651929497,0.00925163,104700.0,104690.0,0.19886729]
[1737651930071,0.00925163,104700.0,104690.0,0.19486729]
[1737651930453,0.00925163,104700.0,104690.0,0.19886729]
[1737651930695,0.00925163,104700.0,104690.0,0.41886729]
[1737651930971,0.07859862,104730.0,104720.0,0.095492]
[1737651931194,0.07909813,104730.0,104720.0,0.095492]
[1737651931449,0.00079813,104730.0,104720.0,0.095492]
[1737651931690,0.00079813,104730.0,104720.0,0.34283929]
[1737651931919,0.00029925,104750.0,104740.0,0.095474]
[1737651931920,2.5e-07,104750.0,104740.0,0.095474]
[1737651932159,1e-08,104760.0,104750.0,0.295465]
[1737651932406,6.9e-07,104770.0,104760.0,0.265456]
[1737651932627,6e-05,104790.0,104780.0,0.095438]
[1737651932859,0.00020984,104790.0,104780.0,0.19278529]
[1737651933118,0.00020984,104790.0,104780.0,0.095438]
[1737651933313,0.00020984,104790.0,104780.0,0.39278529]
[1737651933526,0.00020984,104790.0,104780.0,0.34278529]
[1737651933740,0.00020984,104790.0,104780.0,0.19278529]
[1737651933952,0.00020984,104790.0,104780.0,0.095438]
[1737651934458,0.00020984,104790.0,104780.0,0.099438]
[1737651934678,0.00020984,104790.0,104780.0,0.095438]
[1737651934882,0.09563784,104790.0,104780.0,0.097438]
[1737651935098,0.00020984,104790.0,104780.0,0.101438]
[1737651935342,0.00020984,104790.0,104780.0,0.099438]
[1737651935567,0.00020984,104790.0,104780.0,0.100438]
[1737651935854,0.00020984,104790.0,104780.0,0.34778529]
[1737651936484,0.00020984,104790.0,104780.0,0.100438]
[1737651936709,0.00020984,104790.0,104780.0,0.005]
[1737651936917,0.00035194,104790.0,104780.0,0.100438]
[1737651937544,0.00035194,104790.0,104780.0,0.19778529]
[1737651937960,0.00035194,104790.0,104780.0,0.41778529]
[1737651938401,0.00035194,104790.0,104780.0,0.42543411]
[1737651939393,0.00035194,104790.0,104780.0,0.37543411]
[1737651939631,0.01592453,104810.0,104800.0,0.05]
[1737651939815,0.01592453,104810.0,104800.0,0.24276629]
[1737651940007,0.01592453,104810.0,104800.0,0.26576629]
[1737651940220,0.01592453,104810.0,104800.0,0.26276629]
[1737651940757,0.01592453,104810.0,104800.0,0.24276629]
[1737651941001,0.01592453,104810.0,104800.0,0.19676629]
[1737651941152,0.01592453,104810.0,104800.0,0.24676629]
[1737651941358,0.01592453,104810.0,104800.0,0.19676629]
[1737651941558,0.01592453,104810.0,104800.0,0.099419]
[1737651941760,0.01592453,104810.0,104800.0,0.100419]
[1737651942167,0.01592453,104810.0,104800.0,0.249419]
[1737651942374,0.01592453,104810.0,104800.0,0.245419]
[1737651942574,0.01592453,104810.0,104800.0,0.247419]
[1737651942776,0.08089925,104840.0,104830.0,0.095392]
[1737651942975,0.08139835,104840.0,104830.0,0.095392]
[1737651943939,0.08139835,104840.0,104830.0,0.34273929]
[1737651944754,0.08239835,104840.0,104830.0,0.34273929]
[1737651945419,0.00179835,104840.0,104830.0,0.36273929]
[1737651945626,3.5e-07,104840.0,104830.0,0.38573929]
[1737651945829,0.0823,104860.0,104850.0,0.245374]
[1737651946043,0.00014963,104860.0,104850.0,0.34272129]
[1737651946258,0.00014963,104860.0,104850.0,0.38568488]
[1737651946646,0.00014963,104860.0,104850.0,0.34272129]
[1737651947485,0.00014963,104860.0,104850.0,0.38568488]
[1737651947700,0.00014963,104860.0,104850.0,0.34272129]
[1737651947847,0.00029173,104860.0,104850.0,0.34672129]
[1737651948266,0.00029173,104860.0,104850.0,0.38968488]
[1737651948681,0.31926095,104900.0,104880.0,0.095339]
[1737651948877,0.22609976,104900.0,104880.0,0.190683]
[1737651949085,0.22609976,104900.0,104880.0,0.476701]
[1737651949280,0.41675976,104900.0,104880.0,0.476703]
[1737651949483,0.09734729,104890.0,104870.0,0.286048]
[1737651949682,0.09734729,104890.0,104850.0,0.099371]
[1737651949683,0.095364,104870.0,104850.0,0.099371]
[1737651949951,0.37061608,104860.0,104850.0,0.004]
[1737651950163,0.095392,104830.0,104820.0,0.190793]
[1737651950320,0.54143808,104830.0,104810.0,0.477028]
[1737651950499,0.095401,104820.0,104810.0,0.28621]
[1737651950696,0.286231,104810.0,104790.0,0.477121]
[1737651950942,0.57446229,104800.0,104780.0,0.477159]
[1737651951144,0.25333179,104790.0,104780.0,0.095438]
[1737651951301,0.38362529,104800.0,104790.0,0.0004991]
[1737651951501,0.61852908,104800.0,104790.0,0.0004991]
[1737651951709,0.46062529,104800.0,104790.0,0.0004991]
[1737651951908,0.077,104800.0,104790.0,0.0959271]
[1737651952415,0.077,104800.0,104790.0,0.2459271]
[1737651952618,0.077,104800.0,104790.0,0.0959271]
[1737651952817,0.17534729,104800.0,104790.0,0.0959271]
[1737651953028,0.42867008,104800.0,104790.0,0.0004991]
[1737651953218,0.51628319,104800.0,104790.0,0.0004991]
[1737651953498,0.42867008,104800.0,104790.0,0.0004991]
[1737651953914,0.49767008,104800.0,104790.0,0.0004991]
[1737651954315,0.50167008,104800.0,104790.0,0.0004991]
[1737651954519,0.5260914,104800.0,104790.0,0.0004991]
[1737651954735,0.68399519,104800.0,104790.0,0.0004991]
[1737651955199,0.50267008,104800.0,104790.0,0.0004991]
[1737651955410,0.64057387,104800.0,104790.0,0.0004991]
[1737651955652,0.477219,104780.0,104760.0,0.286354]
[1737651955895,0.73246508,104780.0,104760.0,0.47740863]
[1737651956139,0.54157908,104780.0,104760.0,0.47740863]
[1737651956384,0.54158008,104780.0,104760.0,0.28650363]
[1737651956627,0.35069608,104780.0,104770.0,0.095447]
[1737651957142,0.09734729,104780.0,104770.0,0.095447]
[1737651957346,0.23490379,104800.0,104780.0,0.19086]
[1737651957581,0.077,104800.0,104790.0,0.095428]
[1737651957775,0.23490379,104800.0,104790.0,0.095428]
[1737651957992,0.077,104800.0,104790.0,0.095428]
[1737651958857,0.077,104800.0,104790.0,0.096428]
[1737651959292,0.077,104800.0,104790.0,0.09672725]
[1737651960177,0.0796,104830.0,104820.0,0.095401]
[1737651960384,0.0796,104830.0,104810.0,0.477019]
[1737651960385,0.62103608,104830.0,104810.0,0.477019]
[1737651960611,0.095413,104810.0,104800.0,0.095419]
[1737651960831,0.54148708,104810.0,104790.0,0.38299425]
[1737651961093,0.63690908,104810.0,104790.0,0.29057225]
[1737651961264,0.38358729,104810.0,104800.0,0.095419]
[1737651961399,0.1752676,104820.0,104810.0,0.09541]
[1737651961598,0.2101131,104820.0,104810.0,0.09541]
[1737651962000,0.2101131,104820.0,104800.0,0.477064]
[1737651962282,0.55882289,104820.0,104800.0,0.477064]
[1737651962501,0.2101131,104820.0,104810.0,0.09541]
[1737651962720,0.22056568,104820.0,104800.0,0.477064]
[1737651962935,0.12516368,104820.0,104810.0,0.09541]
[1737651963153,0.02781639,104820.0,104810.0,0.09541]
[1737651964507,0.10034729,104820.0,104800.0,0.381651]
[1737651964700,0.25525108,104810.0,104790.0,0.00855713]
[1737651964901,0.63691908,104810.0,104790.0,0.09587588]
[1737651965130,0.63691908,104810.0,104790.0,0.28672488]
[1737651965131,0.57443329,104810.0,104790.0,0.28672488]
[1737651965351,0.25332279,104800.0,104790.0,0.00044888]
[1737651965531,0.37067008,104800.0,104790.0,0.00044888]
[1737651965739,0.07,104780.0,104740.0,0.095466]
[1737651965950,0.095465,104750.0,104740.0,0.09561584]
[1737651966145,0.71530979,104760.0,104740.0,0.09561584]
[1737651966405,0.37483437,104750.0,104740.0,0.00014984]
[1737651966632,0.44483437,104750.0,104740.0,0.00014984]
[1737651966794,0.46959936,104750.0,104740.0,0.00014984]
[1737651967007,0.39548107,104750.0,104740.0,0.00014984]
[1737651967233,0.21281229,104750.0,104740.0,0.00014984]
[1737651967434,0.42071608,104750.0,104740.0,0.00114984]
[1737651967640,0.37071608,104750.0,104740.0,0.00114984]
[1737651967823,0.39548107,104750.0,104740.0,0.00114984]
[1737651967985,0.44548107,104750.0,104740.0,0.00014984]
[1737651968186,0.45170664,104750.0,104740.0,0.00014984]
[1737651968391,0.57470664,104750.0,104740.0,0.00014984]
[1737651968601,0.62470664,104750.0,104740.0,0.00014984]
[1737651968867,0.42071608,104750.0,104740.0,0.00014984]
[1737651969030,0.35071608,104750.0,104740.0,0.00014984]
[1737651969232,0.35071608,104750.0,104740.0,0.09562384]
[1737651969430,0.19281229,104750.0,104740.0,0.00014984]
[1737651969636,0.35071608,104750.0,104740.0,0.00014984]
[1737651970391,0.51906337,104750.0,104740.0,0.00014984]
[1737651970626,0.37171608,104750.0,104740.0,0.00014984]
[1737651970826,0.27625108,104750.0,104720.0,0.381957]
[1737651971136,0.53390963,104750.0,104740.0,0.00029946]
[1737651971345,0.76803899,104750.0,104740.0,0.00029946]
[1737651971545,0.71481342,104750.0,104740.0,0.00029946]
[1737651971751,0.56181342,104750.0,104740.0,0.00029946]
[1737651971973,0.40390963,104750.0,104740.0,0.00029946]
[1737651972218,0.38390963,104750.0,104740.0,0.09577346]
[1737651972355,0.19296163,104750.0,104740.0,0.09577346]
[1737651972540,0.09749663,104750.0,104740.0,0.09577346]
[1737651972756,0.19596163,104750.0,104740.0,0.09577346]
[1737651972960,0.19596163,104750.0,104740.0,0.00029946]
[1737651973408,0.35386542,104750.0,104740.0,0.00029946]
[1737651974439,0.19596163,104750.0,104740.0,0.09577346]
[1737651974608,0.19696163,104750.0,104740.0,0.00029946]
[1737651974821,0.47221271,104750.0,104740.0,0.00029946]
[1737651975225,0.47121271,104750.0,104740.0,0.00029946]
[1737651975462,0.35086542,104750.0,104740.0,0.00029946]
[1737651975662,0.37086542,104750.0,104740.0,0.00029946]
[1737651976437,0.37386542,104750.0,104740.0,0.00029946]
[1737651976637,0.40386542,104750.0,104740.0,0.00029946]
[1737651976886,0.50121271,104750.0,104740.0,0.00029946]
[1737651977084,0.62421271,104750.0,104740.0,0.00029946]
[1737651977322,0.095501,104710.0,104700.0,0.00029841]
[1737651977495,0.35075208,104710.0,104700.0,0.00029841]
[1737651977644,0.19284829,104710.0,104700.0,0.00029841]
[1737651978029,0.50195208,104710.0,104700.0,0.00029841]
[1737651978236,0.48195208,104710.0,104700.0,0.00029841]
[1737651978445,0.53487049,104710.0,104700.0,0.00029841]
[1737651978651,0.50671167,104710.0,104700.0,0.00079792]
[1737651978860,0.45195208,104710.0,104700.0,0.00079792]
[1737651979104,0.27404829,104710.0,104700.0,0.00079792]
[1737651979314,0.43195208,104710.0,104700.0,0.00079792]
[1737651979514,0.45195208,104710.0,104700.0,0.00079792]
[1737651979716,0.45795208,104710.0,104700.0,0.00079792]
[1737651979967,0.43795208,104710.0,104700.0,0.00079792]
[1737651980242,0.45795208,104710.0,104700.0,0.00079792]
[1737651980494,0.43795208,104710.0,104700.0,0.00079792]
[1737651981005,0.43195208,104710.0,104700.0,0.00079792]
[1737651981199,0.43195208,104710.0,104700.0,0.09630792]
[1737651981416,0.43195208,104710.0,104700.0,0.09730792]
[1737651981619,0.43295208,104710.0,104700.0,0.00079792]
[1737651982068,0.43499208,104710.0,104700.0,0.00079792]
[1737651982278,0.43499208,104710.0,104680.0,0.19134141]
[1737651982279,0.095515,104700.0,104680.0,0.19134141]
[1737651982492,0.54179708,104700.0,104680.0,0.28686541]
[1737651982708,0.35076608,104700.0,104690.0,0.09552]
[1737651982920,0.09124,104710.0,104680.0,0.19134141]
[1737651983145,0.28408929,104710.0,104700.0,0.09551]
[1737651983349,0.28408929,104710.0,104690.0,0.38205]
[1737651983555,0.82402908,104710.0,104690.0,0.286538]
[1737651983679,0.15790379,104700.0,104690.0,0.286538]
[1737651983886,0.15790379,104700.0,104630.0,0.23884762]
[1737651983887,0.15,104690.0,104630.0,0.23884762]
[1737651984114,0.25346879,104640.0,104630.0,0.00044841]
[1737651984316,0.50871987,104640.0,104630.0,0.00044841]
[1737651984517,0.52871987,104640.0,104630.0,0.00044841]
[1737651985040,0.60491987,104640.0,104630.0,0.00044841]
[1737651985307,0.095593,104610.0,104600.0,0.0001424]
[1737651985497,0.53350746,104610.0,104600.0,0.00064169]
[1737651985786,0.56125081,104610.0,104600.0,0.00064169]
[1737651985989,0.40334702,104610.0,104600.0,0.00064169]
[1737651986387,0.55649122,104610.0,104600.0,0.00064169]
[1737651986606,0.25525108,104610.0,104600.0,0.00064169]
[1737651986819,0.15790379,104620.0,104610.0,0.095585]
[1737651987021,0.15790379,104620.0,104610.0,0.191174]
[1737651987226,0.25348879,104620.0,104600.0,0.47862669]
[1737651987433,0.25349679,104610.0,104600.0,0.00064169]
[1737651987583,0.25353679,104610.0,104600.0,0.10024369]
[1737651987805,0.35088408,104610.0,104600.0,0.00064169]
[1737651988196,0.50878787,104610.0,104600.0,0.00064169]
[1737651988568,0.50878787,104610.0,104600.0,0.00164169]
[1737651988569,0.35088408,104610.0,104600.0,0.00164169]
[1737651988806,0.35088408,104610.0,104600.0,0.00564169]
[1737651989007,0.25529108,104610.0,104600.0,0.10124369]
[1737651989230,0.35088408,104610.0,104600.0,0.00564169]
[1737651989455,0.25529108,104610.0,104600.0,0.10124369]
[1737651989654,0.35088408,104610.0,104600.0,0.00164169]
[1737651989840,0.35088408,104610.0,104600.0,0.00064169]
[1737651990728,0.25529108,104610.0,104600.0,0.09624369]
[1737651990933,4e-05,104610.0,104600.0,0.09724369]
[1737651991649,4e-05,104610.0,104600.0,0.24724369]
[1737651992572,4e-05,104610.0,104600.0,0.24624369]
[1737651993058,4e-05,104610.0,104600.0,0.34359098]
[1737651993306,4e-05,104610.0,104600.0,0.39459098]
[1737651993723,4e-05,104610.0,104600.0,0.34359098]
[1737651993903,4e-05,104610.0,104600.0,0.34859098]
[1737651994341,4e-05,104610.0,104600.0,0.40719665]
[1737651994560,0.25345379,104660.0,104650.0,0.095556]
[1737651994776,0.27342591,104700.0,104640.0,0.191115]
[1737651994777,0.15790379,104700.0,104690.0,0.09552]
[1737651994986,0.1593715,104710.0,104700.0,0.09551]
[1737651995201,0.06202421,104710.0,104700.0,0.09551]
[1737651995422,0.06202421,104710.0,104700.0,0.24551]
[1737651995640,0.01004,104710.0,104700.0,0.39285729]
[1737651995866,0.01018937,104710.0,104700.0,0.39285729]
[1737651996940,0.01018937,104710.0,104700.0,0.24551]
[1737651997156,0.11018937,104710.0,104700.0,0.09551]
[1737651997412,0.57701389,104710.0,104700.0,0.001]
[1737651997656,0.65494645,104710.0,104700.0,0.001]
[1737651997926,0.67194645,104710.0,104700.0,0.001]
[1737651998190,0.286598,104680.0,104670.0,0.095538]
[1737651998445,0.37894529,104680.0,104660.0,0.382165]
[1737651998661,0.095531,104680.0,104660.0,0.382166]
[1737651998902,0.477618,104690.0,104670.0,0.286606]
[1737651999132,0.57496529,104690.0,104670.0,0.286606]
[1737651999361,0.47943929,104690.0,104670.0,0.286606]
[1737651999597,0.095529,104680.0,104670.0,0.286606]
[1737651999839,0.095529,104680.0,104670.0,0.095533]
[1737652000070,0.286593,104680.0,104660.0,0.477716]
[1737652000486,0.57496829,104690.0,104670.0,0.286614]
[1737652000776,0.57496829,104690.0,104670.0,0.291614]
[1737652001050,0.095529,104680.0,104670.0,0.001]
[1737652001264,0.67049729,104690.0,104660.0,0.382166]
[1737652001265,0.57496829,104690.0,104660.0,0.382166]
[1737652001438,0.286543,104700.0,104660.0,0.28842929]
[1737652001652,0.19286229,104700.0,104680.0,0.095526]
[1737652001901,0.67900949,104710.0,104680.0,0.095526]
[1737652002101,0.02780299,104700.0,104690.0,0.09552]
[1737652002459,0.095521,104690.0,104670.0,0.245532]
[1737652002620,0.286592,104680.0,104660.0,0.28763]
[1737652002820,0.095538,104670.0,104660.0,0.005]
[1737652003066,0.35078908,104670.0,104660.0,0.005]
[1737652003267,0.42708908,104670.0,104660.0,0.004]
[1737652003472,0.44708908,104670.0,104660.0,0.004]
[1737652003672,0.47708908,104670.0,104660.0,0.005]
[1737652003817,0.50008908,104670.0,104660.0,0.005]
[1737652004025,0.50008908,104670.0,104610.0,0.477933]
[1737652004026,0.095576,104630.0,104610.0,0.477933]
[1737652004296,0.095576,104630.0,104610.0,0.11501338]
[1737652004297,0.38407229,104630.0,104610.0,0.11501338]
[1737652004441,0.382237,104650.0,104610.0,0.01942638]
[1737652004645,0.09734729,104650.0,104640.0,0.095565]
[1737652005058,0.19290329,104650.0,104640.0,0.095565]
[1737652005478,0.362931,104670.0,104660.0,0.095547]
[1737652005684,0.286651,104660.0,104640.0,0.47781]
[1737652005912,0.095556,104650.0,104630.0,0.15]
[1737652006086,0.38401729,104650.0,104630.0,0.62785]
[1737652006292,0.19290329,104650.0,104640.0,0.095565]
[1737652006490,0.26768289,104670.0,104650.0,0.095556]
[1737652006695,0.19289429,104660.0,104640.0,0.477791]
[1737652006947,0.38398929,104660.0,104640.0,0.478791]
[1737652007141,0.01743303,104660.0,104650.0,0.095556]
[1737652007350,0.01743303,104660.0,104650.0,0.245556]
[1737652007554,0.01743303,104660.0,104650.0,0.39290329]
[1737652007911,0.01743303,104660.0,104650.0,0.42235782]
[1737652008143,0.00129989,104670.0,104660.0,0.145547]
[1737652008358,0.00129989,104670.0,104660.0,0.42235863]
[1737652008575,0.00129989,104670.0,104660.0,0.44235863]
[1737652009188,0.00029989,104670.0,104660.0,0.44235863]
[1737652009567,0.01743303,104700.0,104690.0,0.09552]
[1737652009750,0.01758238,104700.0,104690.0,0.09552]
[1737652009953,0.40147067,104700.0,104680.0,0.477609]
[1737652010177,0.40147067,104700.0,104680.0,0.382088]
[1737652010387,0.38391229,104690.0,104670.0,0.382139]
[1737652010597,0.19286729,104690.0,104680.0,0.095529]
[1737652010806,0.09734729,104690.0,104680.0,0.095529]
[1737652011213,0.00014935,104700.0,104690.0,0.09552]
[1737652011414,0.19300664,104700.0,104690.0,0.09552]
[1737652011907,0.095529,104680.0,104670.0,0.29540605]
[1737652012112,0.286576,104690.0,104680.0,0.004]